[Event "1st Henriquez Urena Memorial 2022"]
[Site "Santo Domingo"]
[Date "2022.09.17"]
[Round "2.7"]
[White "Subervi, Jonathan Sigfredo"]
[Black "Dominguez, Jose Manuel"]
[Result "1-0"]
[ECO "B07"]
[WhiteElo "2124"]
[BlackElo "2180"]
[Annotator "TA"]
[PlyCount "57"]
[EventDate "2022.09.16"]
[EventType "swiss"]
[EventCountry "DOM"]
[SourceTitle "playchess.com"]
[Source "ChessBase"]
[SourceQuality "1"]
[TimeControl "5400+30"]

{[%evp 11,57,19,41,35,36,-45,-37,-62,-69,-58,-56,-79,-101,-133,-131,-135,-123,-176,-83,-113,-82,-84,-79,-83,-101,-102,0,0,-3,-84,381,372,527,518,1075,1058,29988,29989,29989,29990,29990,1243,29991,29992,29992,29993,29993,29994]} 1. e4 {[%emt 0:07:19]} d6 {[%emt 0:06:39]} 2. d4 {[%emt 0:03:54]} Nf6 {[%emt 0:00:02]} 3. Nc3 {[%emt 0:00:10]} c6 {[%emt 0:00:01]} 4. Bg5 {[%emt 0:19:19]} Qa5 {[%emt 0:02:14]} 5. Qd2 {[%emt 0:02:32]} Nbd7 {[%emt 0:00:04]} 6. f4 {[%emt 0:09:19]} e5 {[%emt 0:00:21]} 7. Nf3 {[%emt 0:00:38] B07: Pirc Defence: Miscellaneous Systems.} Be7 {[%emt 0:00:55] [#]} 8. Rb1 $146 {[%emt 0:46:01]} (8. a3 $14) ({Predecessor:} 8. g3 h6 9. Bh4 b5 10. Bd3 Bb7 11. dxe5 dxe5 12. fxe5 Nxe5 13. Nxe5 g5 14. Nf3 b4 {1-0 (26) Kovalev,V (2629)-Saveljev,V (2360) Minsk 2017}) 8... h6 $15 {[%emt 0:08:11]} 9. Bh4 {[%emt 0:00:59] Black is slightly better.} exf4 {[%emt 0:00:04]} 10. Bxf6 {[%emt 0:02:57]} Nxf6 {[%emt 0:45:58]} ({Of course not} 10... Bxf6 11. Qxf4 O-O 12. Bd3 $11 (12. Qxd6 c5 $11)) 11. Qxf4 {[%emt 0:00:02]} d5 {[%emt 0:06:24]} 12. Nd2 {[%emt 0:02:35]} Nxe4 {[%emt 0:10:44]} 13. Ndxe4 {[%emt 0:00:42]} dxe4 {[%emt 0:00:03]} 14. Bc4 {[%emt 0:00:31]} (14. Be2 $17) 14... Qf5 {[%emt 0:13:00]} (14... f5 $1 $19 {has better winning chances.} 15. Rd1 Bd7) 15. Qc7 {[%emt 0:00:26] Threatens to win with Rf1.} Bh4+ {[%emt 0:00:44]} 16. g3 {[%emt 0:00:11] [#] And now Rf1 would win.} Bd8 $1 {[%emt 0:00:02]} 17. Qd6 {[%emt 0:00:14] Strongly threatening Rf1.} Be7 {[%emt 0:00:20]} 18. Qc7 {[%emt 0:00:06] Rf1 is the strong threat.} Qg5 {[%emt 0:03:04]} ({Black should play} 18... Qg6 $17 {Threatening ...Rf8.} 19. O-O Rf8) 19. O-O $36 {[%emt 0:01:29][%mdl 2048] White has some pressure.} O-O {[%emt 0:00:22] White should prevent ...Bf6.} 20. Rbe1 {[%emt 0:00:22] [#]} (20. Kh1 $11 Be6 21. Bxe6 fxe6 22. Qxb7) 20... Bh3 $2 {[%emt 0:00:44][%mdl 8192] Black cannot hold the game after this.} (20... Bf6 $1 $17 {stays on course. White must now prevent ...Qd2.} 21. Kh1 Qg6 22. Nxe4 Bxd4) 21. Nxe4 $18 {[%emt 0:00:22]} Qh5 {[%emt 0:00:31]} (21... Qg4 {might work better.} 22. Qxe7 Bxf1 23. Rxf1 Kh8) 22. Qxe7 {[%emt 0:00:30]} Rae8 {[%emt 0:00:30] [#]} (22... Bxf1 $142 23. Rxf1 b5) 23. Bxf7+ $1 {[%emt 0:00:30]} Kh8 {[%emt 0:00:30]} (23... Qxf7 24. Rxf7) 24. Bxe8 {[%emt 0:00:30]} Rxe8 {[%emt 0:00:30]} 25. Rf8+ {[%emt 0:00:30]} Rxf8 {[%emt 0:00:30]} 26. Qxf8+ {[%emt 0:00:30]} Kh7 {[%emt 0:00:30] [#]} 27. Nf6+ $1 {[%emt 0:00:30] White mates.} gxf6 {[%emt 0:00:30]} 28. Re7+ {[%emt 0:00:30]} Kg6 {[%emt 0:00:30]} 29. Qe8+ {[%emt 0:00:30] Weighted Error Value: White=0.20 (precise) /Black=0.78} 1-0

[Event "1st Henriquez Urena Memorial 2022"]
[Site "Santo Domingo"]
[Date "2022.09.17"]
[Round "2.8"]
[White "Arvelo Leo, Gian Carlo"]
[Black "Martinez Castillo, Julio Antonio"]
[Result "0-1"]
[ECO "D34"]
[WhiteElo "2174"]
[BlackElo "2122"]
[Annotator "TA"]
[PlyCount "118"]
[EventDate "2022.09.16"]
[EventType "swiss"]
[EventCountry "DOM"]
[SourceTitle "playchess.com"]
[Source "ChessBase"]
[SourceQuality "1"]
[TimeControl "5400+30"]

{[%evp 16,118,43,12,40,39,45,28,20,33,21,18,41,15,25,47,67,30,236,52,52,1,1,0,8,-36,-40,-172,-32,-47,42,40,30,39,34,0,0,0,0,0,0,-90,0,-448,65,0,0,0,0,0,8,0,0,0,4,-11,-6,-87,-87,-87,-87,-87,-87,-88,-82,-88,-75,-89,-91,-100,-101,-104,-104,-265,-265,-2332,-2261,-5355,-4252,-5065,-3581,-29981,-29982,-29981,-29982,-29982,-29983,-29982,-29984,-29984,-29985,-29986,-29983,-29984,-29984,-29984,-29985,-29985,-29986,-29986,-29987,-29987,-29988,-29991,-29992]} 1. Nf3 {[%emt 0:03:50]} d5 {[%emt 0:00:31]} 2. d4 {[%emt 0:04:24]} e6 {[%emt 0:03:54]} 3. g3 {[%emt 0:01:33]} Nf6 {[%emt 0:00:26]} 4. Bg2 {[%emt 0:00:27]} c5 {[%emt 0:00:21]} 5. O-O {[%emt 0:01:04]} Nc6 {[%emt 0:00:22]} 6. c4 {[%emt 0:00:42]} Be7 {[%emt 0:04:34]} 7. cxd5 {[%emt 0:00:56]} exd5 {[%emt 0:00:40]} 8. Nc3 {[%emt 0:00:27][%cal Bb1c3,Bc3a4,Ba4c5,Bc5d7][%mdl 32]} O-O {[%emt 0:00:42]} 9. b3 {[%emt 0:02:52] 9.dxc5 gains popularity.} Qa5 {[%emt 0:09:01] D34: Tarrasch Defence: 6 g3 Nf6 7 Bg2 Be7.} 10. Bb2 {[%emt 0:05:29]} Rd8 {[%emt 0:00:33]} 11. dxc5 {[%emt 0:27:55]} Bxc5 {[%emt 0:01:36] White has an edge.} 12. Na4 {[%emt 0:02:09]} (12. a3 {keeps more tension.} Ne4 13. b4 Qb6 14. e3) 12... Be7 {[%emt 0:01:36] [#]} 13. Rc1 $146 {[%emt 0:14:10]} ({Predecessor:} 13. Nd4 Bd7 14. Rc1 Rac8 15. Nxc6 Bxc6 16. Bc3 Qc7 17. Bd4 Qb8 18. Bh3 Bd7 19. Bxd7 Rxc1 20. Qxc1 Rxd7 {½-½ (43) Matnadze,A (2283)-Kalevic,S (2354) Tbilisi 1999}) 13... Bf5 {[%emt 0:12:46]} (13... Ne4 {looks sharper.} 14. Ne5 Nxe5 15. Bxe5 Re8) 14. a3 {[%emt 0:19:54]} Qa6 {[%emt 0:08:59]} (14... Ne4 {with more complications.} 15. e3 Qa6 16. b4 Bg4) 15. Nc5 {[%emt 0:01:24]} Qb6 {[%emt 0:01:10]} 16. b4 {[%emt 0:01:54]} a5 $2 {[%emt 0:05:41]} (16... Ne4 $11 {and Black stays safe.} 17. Nb3 Bg6) 17. Nd4 $2 {[%emt 0:01:44]} (17. Na4 $18 Qa6 18. b5 Qxb5 19. Rxc6 $1 {[%mdl 512]} Qxc6 20. Nd4) 17... Nxd4 $14 {[%emt 0:01:13]} 18. Bxd4 {[%emt 0:00:07]} (18. Qxd4 $14 axb4 19. axb4) 18... axb4 $11 {[%emt 0:02:00] [#]} 19. Nd7 $1 {[%emt 0:05:10]} Qa6 {[%emt 0:02:51]} (19... Qe6 20. Nxf6+) 20. Nb6 {[%emt 0:01:05]} bxa3 {[%emt 0:01:23]} 21. Qb3 {[%emt 0:02:16]} ({Better is} 21. Nxa8 $15 Rxa8 22. Qb3) 21... Be6 {[%emt 0:11:14]} (21... Qxe2 22. Nxa8 Rxa8 23. Qxb7 $18) (21... Rab8 $19 {And now ...Ne4 would win.} 22. e3 Ne4 23. Nxd5 Bf8) 22. Nxa8 $15 {[%emt 0:00:28]} Qxa8 {[%emt 0:01:35]} (22... Rxa8 $15 23. Rc7 Bd6) 23. Rc7 $14 {[%emt 0:00:10][%csl LRb7,LRe7]} Bd6 {[%emt 0:02:36]} 24. Rxb7 {[%emt 0:00:31] Strongly threatening Bxf6.} Ne4 {[%emt 0:00:27]} 25. Rd1 {[%emt 0:00:44] Prevents Nd2.} Nc5 {[%emt 0:04:31]} 26. Bxc5 {[%emt 0:00:11]} Bxc5 {[%emt 0:00:03]} 27. Rb5 {[%emt 0:01:51]} (27. Bxd5 $2 a2 28. e4 a1=Q $19) 27... Qa7 {[%emt 0:01:46]} 28. e3 {[%emt 0:00:31]} (28. Rb7 $1 $11 Qa5 29. Rb5) 28... a2 {[%emt 0:06:36]} (28... d4 $1 $17 29. Qc2 a2 $1) 29. Qc3 {[%emt 0:00:30][%mdl 8192]} (29. Rxc5 $11 {and White is okay.} a1=Q 30. Rxa1 Qxa1+ 31. Bf1) 29... Ra8 $2 {[%emt 0:10:04]} 30. Rxc5 {[%emt 0:00:30]} (30. Ra1 $1 $14 Rc8 31. Qb3 (31. Ra5 Qb6 $11)) 30... a1=Q $11 {[%emt 0:00:52]} 31. Rxa1 {[%emt 0:00:17]} Qxa1+ {[%emt 0:00:16]} 32. Qc1 {[%emt 0:00:10]} Qe5 {[%emt 0:03:10] Hoping for ...Ra1.} 33. Rc3 {[%emt 0:00:57]} ({Don't go for} 33. Bxd5 $2 Ra1 34. Bxe6 Rxc1+ 35. Rxc1 fxe6 $19) 33... g6 {[%emt 0:00:30]} 34. h3 {[%emt 0:00:32]} Ra2 {[%emt 0:00:21]} 35. Bf1 {[%emt 0:00:32]} Qf6 {[%emt 0:00:46]} 36. Qe1 {[%emt 0:00:28] [#]} (36. f4 $1 $11) 36... Rxf2 $1 $17 {[%emt 0:01:19] Black is much more active.} 37. Qxf2 {[%emt 0:00:18]} Qxc3 {[%emt 0:00:02][%mdl 4096] Endgame KQB-KQB} 38. Qf4 {[%emt 0:00:41]} Kg7 {[%emt 0:00:30]} 39. Bg2 {[%emt 0:00:27]} Qf6 {[%emt 0:01:00]} 40. Qd6 {[%emt 0:00:33]} Qg5 {[%emt 0:00:19]} (40... g5 {is more complex.} 41. Qb4 Qa1+ 42. Kf2 Qe5) 41. Qf4 {[%emt 0:00:35]} Qxf4 {[%emt 0:00:16]} 42. exf4 {[%emt 0:00:27] KB-KB} d4 {[%emt 0:01:15]} 43. Kf2 {[%emt 0:00:27]} Kf6 {[%emt 0:00:13]} 44. g4 $2 {[%emt 0:00:26]} (44. h4 $17) 44... g5 $19 {[%emt 0:00:46]} 45. Be4 $2 {[%emt 0:00:25]} (45. Kg3) 45... gxf4 {[%emt 0:00:32]} 46. Bxh7 {[%emt 0:00:13] [#]} Kg5 $1 {[%emt 0:01:21]} 47. Kf3 {[%emt 0:00:46]} Bd5+ {[%emt 0:00:41]} 48. Be4 {[%emt 0:00:45]} Bxe4+ {[%emt 0:00:12] Black mates.} 49. Kxe4 {[%emt 0:00:07]} d3 {[%emt 0:00:14]} 50. Kxd3 {[%emt 0:00:08] [#] KPP-KPP} Kh4 $1 {[%emt 0:00:01]} 51. Ke2 {[%emt 0:01:14]} Kg3 {[%emt 0:02:13]} ({Not} 51... Kxh3 52. Kf3 $11) 52. Kf1 {[%emt 0:00:23]} Kxh3 {[%emt 0:00:00] KPP-KP} 53. g5 {[%emt 0:00:08]} Kg4 {[%emt 0:00:00]} 54. Kf2 {[%emt 0:00:30]} Kxg5 {[%emt 0:00:00]} 55. Kf3 {[%emt 0:00:06]} Kf5 {[%emt 0:00:00][%cal Bg5f5,Bf5e4,Be4f4,Bf4e3][%mdl 32]} 56. Kf2 {[%emt 0:00:09]} Ke4 {[%emt 0:00:00]} 57. Ke2 {[%emt 0:00:05]} f3+ {[%emt 0:00:00]} 58. Kf2 {[%emt 0:00:00]} Kf4 {[%emt 0:00:00]} 59. Kf1 {[%emt 0:00:03]} Ke3 {[%emt 0:00:00] Weighted Error Value: White=0.66/Black=0.31} 0-1

[Event "1st Henriquez Urena Memorial 2022"]
[Site "Santo Domingo"]
[Date "2022.09.17"]
[Round "2.9"]
[White "Orizondo, Hugo"]
[Black "Crispin Ferreras, Darvi Abraham"]
[Result "1-0"]
[ECO "E15"]
[WhiteElo "2034"]
[BlackElo "2160"]
[Annotator "TA"]
[PlyCount "95"]
[EventDate "2022.09.16"]
[EventType "swiss"]
[EventCountry "DOM"]
[SourceTitle "playchess.com"]
[Source "ChessBase"]
[SourceQuality "1"]
[TimeControl "5400+30"]

{[%evp 14,95,18,15,26,17,23,24,32,34,27,27,33,14,10,22,9,18,24,4,16,0,26,22,30,0,46,37,53,42,64,30,54,51,45,0,0,0,0,0,48,39,39,41,50,0,0,0,56,32,100,0,18,0,0,0,0,0,0,0,0,0,0,0,52,40,54,51,98,36,380,386,392,359,483,470,414,240,845,856,840,839,825,792]} 1. d4 {[%emt 0:02:48]} Nf6 {[%emt 0:06:32]} 2. c4 {[%emt 0:00:07]} e6 {[%emt 0:00:24]} 3. Nf3 {[%emt 0:00:04]} b6 {[%emt 0:00:17]} 4. g3 {[%emt 0:00:14]} Ba6 {[%emt 0:00:13]} 5. b3 {[%emt 0:00:13]} Bb4+ {[%emt 0:00:13]} 6. Bd2 {[%emt 0:00:10]} Be7 {[%emt 0:00:07]} 7. Nc3 {[%emt 0:00:43]} Bb7 {[%emt 0:00:17] 7...d5 is the modern continuation.} 8. Bg2 {[%emt 0:00:36][%cal Od4d5]} d5 {[%emt 0:01:02] E15: Queen's Indian: 4 g3 sidelines, 4 g3 Ba6 and 4 g3 Bb7 early deviations.} 9. cxd5 {[%emt 0:03:10]} Nxd5 {[%emt 0:00:50]} 10. O-O {[%emt 0:04:35]} O-O {[%emt 0:04:46] White has an edge.} 11. Re1 {[%emt 0:08:53] [#]} Nxc3 $146 {[%emt 0:15:39]} ({Predecessor:} 11... c5 12. Nxd5 Bxd5 13. Bc3 Nd7 14. Rc1 Rc8 15. Bb2 cxd4 16. Qxd4 Bf6 17. Qd2 Bxb2 18. Qxb2 {0-1 (61) Aseeva,A (1983)-Kruzhilin,A (2059) Saratov 2014}) 12. Bxc3 {[%emt 0:00:13]} Be4 {[%emt 0:00:02] Against Qc2} 13. Nd2 {[%emt 0:14:58]} Bxg2 {[%emt 0:03:31]} 14. Kxg2 {[%emt 0:02:56]} Na6 {[%emt 0:10:55]} 15. Nf3 {[%emt 0:03:35][%cal Bd2f3,Bf3d4,Bd4b5][%mdl 32]} c5 {[%emt 0:01:01]} 16. e4 {[%emt 0:10:30]} (16. Qd3 $5 {[%cal Rd3a6]} cxd4 17. Bxd4 $11 (17. Qxd4 Qxd4 18. Nxd4 Rfc8 $11)) 16... cxd4 {[%emt 0:01:23]} 17. Nxd4 {[%emt 0:05:18]} Rc8 {[%emt 0:00:32]} 18. Nb5 {[%emt 0:01:20]} Rc5 {[%emt 0:14:05]} 19. Qe2 {[%emt 0:06:54]} Qd7 {[%emt 0:01:25]} (19... Nc7 $1 $11 {feels stronger.} 20. Rad1 Qb8 21. Nxc7 (21. Qg4 $2 Rg5 $19) 21... Qxc7) 20. a4 $1 $14 {[%emt 0:00:15]} (20. Qg4 $2 Rg5 21. Rad1 Qxb5 $19) 20... Rfc8 {[%emt 0:00:14]} 21. Rad1 {[%emt 0:01:43]} Qb7 {[%emt 0:01:15]} 22. Bd4 {[%emt 0:03:31]} (22. Qf3 {feels hotter.} Nb8 23. Re3 Nd7 24. Red3) 22... R5c6 {[%emt 0:13:20]} 23. Qg4 {[%emt 0:05:55][%csl Gd4][%cal Rg4g7]} Bf8 {[%emt 0:05:17]} 24. Kg1 {[%emt 0:07:31]} Nc5 {[%emt 0:11:26]} 25. Be5 {[%emt 0:00:35] Threatens to win with Nd4.} Nd7 {[%emt 0:01:33]} 26. Ba1 {[%emt 0:00:53][%cal Ob5d6]} a6 {[%emt 0:02:31] [#]} (26... Nc5 $11 {is more appropriate.}) 27. Nd6 $1 {[%emt 0:01:14]} Rxd6 {[%emt 0:00:06]} 28. Rxd6 {[%emt 0:00:02] Strongly threatening Rdd1.} h5 {[%emt 0:00:01]} 29. Qd1 {[%emt 0:03:43]} (29. Qg5 $14 f6 {[#]} 30. Rxd7 $1 Qxd7 31. Bxf6 (31. Qxh5 Rd8 $11)) 29... Bxd6 $11 {[%emt 0:00:07]} 30. Qxd6 {[%emt 0:00:02]} Rc6 {[%emt 0:02:00]} (30... Nc5 $11) 31. Qe7 $14 {[%emt 0:01:16]} Qc7 {[%emt 0:02:22]} (31... Rc8 $14) 32. Qg5 {[%emt 0:00:47] White is much more active.} (32. Bb2 $16) 32... e5 {[%emt 0:00:47][%cal Oh5h4]} (32... f6 $5 {[%cal Rf6g5]} 33. Qxh5 Rc1 $11) 33. Rd1 $40 {[%emt 0:03:58][%mdl 128] White is up to no good.} Rd6 {[%emt 0:01:13]} 34. Qxh5 {[%emt 0:00:41]} Nf6 {[%emt 0:00:17][%csl LRe4,LRh5]} 35. Qe2 {[%emt 0:00:32]} Rxd1+ {[%emt 0:00:10]} 36. Qxd1 {[%emt 0:00:02]} Nxe4 $11 {[%emt 0:00:02][%mdl 4096] Endgame KQB-KQN} 37. Kg2 {[%emt 0:01:27]} Nc5 {[%emt 0:00:20]} 38. Qd5 {[%emt 0:00:21]} Nd7 {[%emt 0:02:29]} (38... Qd7 $1 $11 39. Qxd7 (39. Qxe5 f6 $11) 39... Nxd7) 39. h4 $14 {[%emt 0:00:39]} a5 {[%emt 0:00:26]} 40. Bb2 {[%emt 0:00:19]} Kf8 {[%emt 0:00:20]} (40... g6 $1 $14) 41. Ba3+ {[%emt 0:00:25]} ({Better is} 41. h5 $16) 41... Nc5 $2 {[%emt 0:00:22][%mdl 8192] A mistake that costs the game.} (41... Kg8 $1 $14) 42. b4 $18 {[%emt 0:00:38]} axb4 {[%emt 0:00:16]} 43. Bxb4 {[%emt 0:00:02]} Ke8 {[%emt 0:00:22]} 44. a5 {[%emt 0:00:52]} Nd7 {[%emt 0:00:58]} 45. Bd6 {[%emt 0:00:46]} (45. a6 $142 Qa7 46. Qd6 Qa8+ 47. Kg1) 45... Qa7 {[%emt 0:00:52] Against Qa8+} (45... Qc8 46. Bxe5 Kf8 47. axb6 Nxe5) 46. Qc6 {[%emt 0:01:13][%cal Rc6c8] White is clearly winning.} Kd8 {[%emt 0:00:21] Prevents Qc8+.} 47. axb6 {[%emt 0:00:53]} Qxb6 {[%emt 0:00:09]} 48. Qa8+ {[%emt 0:06:58] Weighted Error Value: White=0.21 (precise) /Black=0.35} 1-0

[Event "1st Henriquez Urena Memorial 2022"]
[Site "Santo Domingo"]
[Date "2022.09.17"]
[Round "2.10"]
[White "Lugo Matos, Richards Reynier"]
[Black "Ferreira Fernandez, Sergio"]
[Result "0-1"]
[ECO "B07"]
[WhiteElo "2157"]
[BlackElo "2119"]
[Annotator "TA"]
[PlyCount "106"]
[EventDate "2022.09.16"]
[EventType "swiss"]
[EventCountry "DOM"]
[SourceTitle "playchess.com"]
[Source "ChessBase"]
[SourceQuality "1"]
[TimeControl "5400+30"]

{[%evp 10,106,72,49,56,52,45,20,27,11,8,-15,-12,-8,-8,-41,-7,-97,-72,-83,-45,-29,0,0,0,-36,-32,-50,-3,-50,27,-58,-58,-75,-75,-75,-75,-95,-18,-13,-7,-7,0,-2,-12,-9,0,0,0,-45,-41,-137,-72,-59,-62,-60,-25,-88,-57,-104,-97,-388,-383,-481,-477,-386,0,0,0,0,0,0,0,-190,-54,-51,-52,-108,-58,-80,-89,-331,-331,-358,-354,-362,-354,-297,-289,-458,-456,-1549,-1327,-4133,-4906,-4578,-1919,-930,-920]} 1. e4 {[%emt 0:00:02]} g6 {[%emt 0:01:17]} 2. d4 {[%emt 0:00:56]} Bg7 {[%emt 0:06:42]} 3. Nc3 {[%emt 0:00:33]} d6 {[%emt 0:00:01]} 4. Bg5 {[%emt 0:01:53]} h6 {[%emt 0:01:51]} 5. Be3 {[%emt 0:00:15]} Nf6 {[%emt 0:00:02]} 6. f3 {[%emt 0:01:25]} c6 {[%emt 0:00:02] B07: Pirc Defence: Miscellaneous Systems.} 7. Qd2 {[%emt 0:01:33]} b5 {[%emt 0:00:02]} 8. Nge2 {[%emt 0:04:18]} Nbd7 {[%emt 0:04:43] The position is equal.} 9. g4 {[%emt 0:00:51]} Nb6 {[%emt 0:00:05]} 10. Ng3 {[%emt 0:00:40]} h5 {[%emt 0:01:40]} 11. g5 {[%emt 0:05:04]} Nfd7 {[%emt 0:03:09]} 12. b3 {[%emt 0:05:28]} a5 {[%emt 0:22:12] [#]} 13. Bd3 $146 {[%emt 0:08:10]} (13. h4 $11) ({Predecessor:} 13. h4 O-O 14. Bg2 a4 15. O-O b4 16. Nce2 c5 17. Rad1 Qc7 18. f4 axb3 19. axb3 Ra2 20. f5 {½-½ (33) Wang,Z (2525)-Tkachiev,V (2605) Kuala Lumpur 1993}) 13... b4 $17 {[%emt 0:15:39]} 14. Nd1 {[%emt 0:05:39]} c5 {[%emt 0:00:05]} 15. Ne2 {[%emt 0:03:16]} Ba6 {[%emt 0:18:47]} 16. Bxa6 {[%emt 0:08:32]} Rxa6 {[%emt 0:00:02]} 17. a4 {[%emt 0:06:08]} c4 {[%emt 0:03:19]} 18. O-O {[%emt 0:01:19]} Ra8 {[%emt 0:04:10]} (18... d5 $15) 19. Nf2 {[%emt 0:00:27]} (19. f4 $11) 19... Rc8 {[%emt 0:04:22]} (19... d5 $15) 20. Rac1 {[%emt 0:05:44]} ({Better is} 20. f4 $11) 20... d5 $15 {[%emt 0:01:47]} 21. Nf4 {[%emt 0:01:29]} e6 {[%emt 0:01:07]} 22. Kh1 {[%emt 0:04:10]} O-O {[%emt 0:03:28]} 23. N2h3 {[%emt 0:04:55]} cxb3 {[%emt 0:04:32]} (23... Qc7 $17 {Black wants to play ...dxe4.} 24. Ne2 e5) 24. cxb3 $11 {[%emt 0:00:07]} Rxc1 {[%emt 0:00:03]} 25. Rxc1 {[%emt 0:00:52]} dxe4 {[%emt 0:00:08]} 26. fxe4 {[%emt 0:00:06]} Qa8 {[%emt 0:00:04]} 27. Nf2 {[%emt 0:02:10]} Rc8 {[%emt 0:00:55]} 28. N4d3 {[%emt 0:11:30]} Rc6 {[%emt 0:01:59][%cal Bc8c6,Bc6d6,Bd6d7][%mdl 32]} 29. Nc5 {[%emt 0:03:33]} Rd6 {[%emt 0:00:18][%cal Og7d4]} 30. Kg1 {[%emt 0:07:13] [#]} (30. Rc2 $15) 30... Bxd4 $1 {[%emt 0:01:14][%mdl 512]} 31. Bxd4 {[%emt 0:01:23] aiming for Nxd7.} e5 {[%emt 0:00:01]} 32. Nxd7 {[%emt 0:00:57]} Rxd7 {[%emt 0:00:56][%mdl 64] Pin} 33. Qe2 {[%emt 0:01:14]} Rxd4 $17 {[%emt 0:00:27]} 34. Qb5 {[%emt 0:00:05]} (34. h4 $15) 34... Nd7 {[%emt 0:00:40] And now ...Rd2 would win.} 35. Rc7 $2 {[%emt 0:00:23][%mdl 8192]} (35. Qc6 $17 {was called for.} Qxc6 36. Rxc6) 35... Qd8 $1 $19 {[%emt 0:00:04][%csl LRc7,LRg5]} 36. Qxa5 {[%emt 0:01:28]} Qxg5+ {[%emt 0:00:01]} 37. Kf1 {[%emt 0:00:02]} Qf4 $2 {[%emt 0:01:16]} (37... Rd2 38. Rc8+ Nf8 39. Qc5 $17 (39. Qxb4 $2 Rxf2+ 40. Kxf2 Qh4+ 41. Ke3 Qh3+ 42. Kd2 Qxc8 $19)) ({Black should play} 37... Nf8 $19 38. Qc5 Kg7) 38. Rc8+ $11 {[%emt 0:01:35]} Kg7 {[%emt 0:01:15]} (38... Nf8 $5 39. Qc5 $8 Rd1+ 40. Ke2 (40. Kg2 Qg5+ 41. Kf3 Rd8 $17) 40... Qd2+ 41. Kf3 Qf4+ 42. Ke2 (42. Kg2 Qg5+ 43. Kf3 Rd8 $17) 42... Qd2+ 43. Kf3 Qf4+ 44. Ke2 $11 (44. Kg2 Qg5+ 45. Kf3 Rd8 $17)) 39. Qd8 {[%emt 0:00:20][%csl Gc8][%cal Rd8h8]} Kh6 {[%emt 0:00:01] ( -> ...Rd2)} 40. h4 {[%emt 0:00:43][%cal Rd8h8]} Qf6 $40 {[%emt 0:01:15][%mdl 128] Black attacks.} 41. Qe8 $2 {[%emt 0:03:05]} (41. Qxf6 $11 Nxf6 42. a5) 41... Rd2 {[%emt 0:00:44]} ({Weaker is} 41... Qxh4 42. Qxf7 (42. Rc7 $2 Rd2 $19) 42... Rd6 43. Rc2 $17 (43. Rh8+ Kg5 $17)) (41... Rd1+ $1 $19 42. Kg2 Rd2 43. Qh8+ Qxh8 44. Rxh8+ Kg7) 42. Qh8+ $15 {[%emt 0:00:34]} Qxh8 {[%emt 0:00:00] Chess con chili.} 43. Rxh8+ {[%emt 0:00:01][%mdl 4096] Endgame KRN-KRN} Kg7 {[%emt 0:00:01] Black is more active.} 44. Rc8 {[%emt 0:02:22]} Rb2 {[%emt 0:00:22]} 45. a5 $2 {[%emt 0:00:00]} (45. Rc7 $17 {was forced.} Nf6 46. Nd3 Rb1+ 47. Ke2) 45... Rxb3 $19 {[%emt 0:00:05]} 46. Rc7 {[%emt 0:00:00]} Nf6 {[%emt 0:00:01]} 47. a6 {[%emt 0:00:02]} Ra3 {[%emt 0:00:03]} 48. a7 {[%emt 0:00:05][%cal Of2d3]} b3 {[%emt 0:00:20]} 49. Nd3 {[%emt 0:00:32]} (49. Rb7 $142) 49... Nxe4 {[%emt 0:00:06] Black is clearly winning.} 50. Nxe5 {[%emt 0:00:57]} (50. Ke2 $142) 50... b2 {[%emt 0:02:26]} 51. Rxf7+ {[%emt 0:00:13]} Kg8 {[%emt 0:00:01]} 52. Rb7 {[%emt 0:00:04]} b1=Q+ {[%emt 0:00:03]} (52... b1=R+ $142 53. Rxb1 Nd2+ 54. Kf2 Nxb1 55. Nxg6 Kg7) 53. Rxb1 {[%emt 0:00:06]} Nd2+ {[%emt 0:03:07] Weighted Error Value: White=0.72/Black=0.48} 0-1